bitfinex/quotes_ETHUSD_20241004
["timestamp","ask_amount","ask_price","bid_price","bid_amount"]
[1728022386731,4.19711,2382.6,2382.3,0.87914746]
[1728022386932,4.19711,2382.6,2382.4,0.37910862]
[1728022387132,4.19711,2382.6,2382.3,0.87914746]
[1728022387342,4.19711,2382.6,2382.4,0.37914206]
[1728022387573,4.19711,2382.6,2382.5,0.37914206]
[1728022389291,4.94847,2382.8,2382.5,0.37962584]
[1728022389579,4.94847,2382.8,2382.4,4.19743]
[1728022389752,4.94847,2382.8,2382.6,0.37962723]
[1728022389966,4.94847,2382.8,2382.4,4.19743]
[1728022390287,4.94847,2382.8,2382.5,0.37962766]
[1728022390479,4.94847,2382.8,2382.6,0.37962766]
[1728022390650,4.94847,2382.8,2382.4,4.19743]
[1728022390853,4.94847,2382.8,2382.5,0.37968393]
[1728022391186,4.94847,2382.8,2382.6,0.37968393]
[1728022391491,4.94845,2382.8,2382.4,4.1974]
[1728022391667,4.94845,2382.8,2382.5,0.37970629]
[1728022391866,4.94845,2382.8,2382.4,4.1974]
[1728022392081,0.10493046,2382.7,2382.5,0.37971498]
[1728022392295,4.30186046,2382.7,2382.4,4.1974]
[1728022392648,4.30186046,2382.7,2382.5,0.37973666]
[1728022392983,4.30186046,2382.7,2382.4,4.1974]
[1728022393183,4.30186046,2382.7,2382.5,0.37988065]
[1728022393391,4.30186046,2382.7,2382.4,4.1974]
[1728022393571,4.30186046,2382.7,2382.5,0.37988269]
[1728022393773,4.30186046,2382.7,2382.4,4.1974]
[1728022393972,4.30186046,2382.7,2382.5,0.37988212]
[1728022394147,4.30186046,2382.7,2382.4,5.07654746]
[1728022394480,4.30186046,2382.7,2382.5,0.37988762]
[1728022394778,0.10493046,2382.7,2382.6,0.37988762]
[1728022394953,0.10493046,2382.7,2382.4,5.07651746]
[1728022395155,0.10493046,2382.7,2382.5,0.37989504]
[1728022395395,0.10493046,2382.7,2382.6,0.37991431]
[1728022395619,0.7517,2382.8,2382.6,0.37991431]
[1728022395934,0.7517,2382.8,2382.5,4.19723]
[1728022396264,5.05339045,2382.8,2382.4,5.07650746]
[1728022396465,5.05339045,2382.8,2382.5,0.37992759]
[1728022396690,5.05339045,2382.8,2382.4,5.07650746]
[1728022396893,5.05339045,2382.8,2382.5,0.37992903]
[1728022397105,5.05339045,2382.8,2382.4,5.07650746]
[1728022397289,5.05339045,2382.8,2382.5,0.37992679]
[1728022397475,5.05339045,2382.8,2382.4,5.07650746]
[1728022397799,5.05339045,2382.8,2382.5,0.37992482]
[1728022398006,5.05339045,2382.8,2382.4,5.07650746]
[1728022398303,5.05339045,2382.8,2382.5,0.37992576]
[1728022398518,4.94846,2382.8,2382.4,9.27383746]
[1728022398668,5.05339041,2382.8,2382.5,0.37991131]
[1728022398869,5.05339041,2382.8,2382.4,9.27383746]
[1728022399270,5.05339041,2382.8,2382.5,0.37990984]
[1728022399610,5.05339041,2382.8,2382.4,9.27383746]
[1728022399806,4.94846,2382.8,2382.5,0.37990467]
[1728022399997,4.94846,2382.8,2382.4,9.27383746]
[1728022400191,4.94846,2382.8,2382.5,0.37990399]
[1728022400384,5.0533904,2382.8,2382.5,0.87914746]
[1728022401407,5.0533904,2382.8,2382.5,5.07640746]
[1728022401708,4.94846,2382.8,2382.5,5.07640746]
[1728022401905,0.10493039,2382.7,2382.5,5.07640746]
[1728022402203,4.94846,2382.8,2382.6,0.87914746]
[1728022403076,4.94846,2382.8,2382.7,0.87914746]
[1728022405506,0.7517,2382.8,2382.7,0.87914746]
[1728022406313,4.19658,2382.9,2382.7,0.87914746]
[1728022406815,4.95616,2383.0,2382.7,0.87914746]
[1728022407022,4.95616,2383.0,2382.8,0.87914746]
[1728022407227,5.06108114,2383.0,2382.8,0.87914746]
[1728022408237,4.95616,2383.0,2382.8,0.87914746]
[1728022408648,4.1961,2383.2,2382.9,5.07570746]
[1728022408856,4.19604,2383.2,2383.0,0.87914746]
[1728022409147,4.95565,2383.3,2383.0,0.87914746]
[1728022409148,9.15168,2383.3,2383.0,0.87914746]
[1728022409607,4.19606,2383.2,2383.0,0.87914746]
[1728022410404,4.19606,2383.2,2382.9,0.87914746]
[1728022410604,4.19606,2383.2,2383.0,0.87914746]
[1728022411510,4.19606,2383.2,2382.9,0.87914746]
[1728022412144,4.19606,2383.2,2383.0,0.87914746]
[1728022412145,4.19604,2383.2,2383.0,0.87914746]
[1728022412353,4.19604,2383.2,2382.9,5.07564746]
[1728022412557,4.95563,2383.3,2382.9,5.07564746]
[1728022413108,4.19603,2383.2,2382.9,5.07564746]
[1728022416311,4.95563,2383.3,2382.9,5.07564746]
[1728022416748,4.95563,2383.3,2383.0,4.19638]
[1728022416949,4.95563,2383.3,2383.0,5.07552746]
[1728022417250,4.19593,2383.3,2383.0,5.07552746]
[1728022417761,4.19593,2383.3,2383.0,0.87914746]
[1728022418049,4.19593,2383.3,2382.6,2.81068703]
[1728022418050,4.97556,2382.9,2382.6,0.87914746]
[1728022418211,4.19709,2382.6,2382.5,0.87914746]
[1728022418407,5.08102171,2382.6,2382.4,0.87914746]
[1728022418610,4.19727,2382.5,2382.4,0.87914746]
[1728022419541,9.17327,2382.6,2382.4,0.87914746]
[1728022419912,4.19727,2382.5,2382.4,0.87914746]
[1728022422071,4.19727,2382.5,2382.3,0.87914746]
[1728022423162,4.19727,2382.5,2382.4,0.87914746]
[1728022423655,4.97644,2382.4,2382.3,0.87914746]
[1728022423869,4.97644,2382.4,2382.1,0.87914746]
[1728022423870,4.19762,2382.3,2382.1,0.87914746]
[1728022424659,4.1978,2382.2,2382.1,0.87914746]
[1728022425687,4.1978,2382.2,2382.0,0.87914746]
[1728022425870,4.1978,2382.2,2382.1,0.87914746]
[1728022426094,8.06635314,2382.2,2382.1,0.87914746]
[1728022426253,4.19832,2381.9,2381.8,0.87914746]
[1728022426445,4.19832,2381.9,2381.6,0.87914746]
[1728022426446,4.1985,2381.8,2381.6,0.87914746]
[1728022427197,4.1985,2381.8,2381.4,0.87914746]
[1728022427198,4.19887,2381.6,2381.4,0.87914746]
[1728022427346,4.19887,2381.6,2381.3,1.31872119]
[1728022427347,4.19887,2381.6,2381.3,0.87914746]
[1728022428241,4.19914,2381.5,2381.3,0.87914746]
[1728022428493,4.19914,2381.5,2381.2,0.87914746]
[1728022429045,4.19887,2381.6,2381.3,0.87914746]
[1728022429369,4.19887,2381.6,2381.2,8.07869746]
[1728022429961,4.97771,2381.7,2381.2,12.27812746]
[1728022430698,4.97771,2381.7,2381.2,8.07857746]
[1728022431079,0.779,2381.7,2381.2,8.07857746]
[1728022431396,4.19864,2381.8,2381.3,4.19925]
[1728022431549,4.19864,2381.8,2381.4,4.1992]
[1728022432162,4.3036101,2381.8,2381.3,5.07850746]
[1728022432406,4.3036101,2381.8,2381.3,4.19936]
[1728022432695,4.19874,2381.7,2381.2,5.07857746]
[1728022432868,4.19874,2381.7,2381.3,4.19938]
[1728022433522,10.55892051,2381.8,2381.3,4.19938]
[1728022433826,6.36027051,2381.8,2381.3,4.19938]
[1728022434030,6.46524077,2381.8,2381.3,4.19938]
[1728022434495,4.19889,2381.6,2381.2,4.19943]
[1728022434693,4.30386822,2381.6,2381.2,4.19943]
[1728022435094,4.19889,2381.6,2381.2,4.19943]
[1728022435722,6.36027051,2381.8,2381.3,4.1993]
[1728022435723,4.19861,2381.8,2381.3,4.1993]
[1728022436941,4.19861,2381.8,2381.4,4.19908]
[1728022437540,4.19859,2381.8,2381.3,8.39856]
[1728022437820,5.06682021,2381.9,2381.3,8.39856]
[1728022437983,0.86847021,2381.9,2381.3,8.39856]
[1728022438291,0.86847021,2381.9,2381.3,4.19926]
[1728022438497,5.06684021,2381.9,2381.3,4.19926]
[1728022438723,0.86847021,2381.9,2381.3,8.39852]
[1728022440017,0.86847021,2381.9,2381.3,4.19926]
[1728022440232,5.06682021,2381.9,2381.3,4.19926]
[1728022440909,5.06682021,2381.9,2381.3,8.39855]
[1728022441115,5.06680021,2381.9,2381.4,4.19918]
[1728022444913,0.86847021,2381.9,2381.4,4.19918]
[1728022445107,0.86847021,2381.9,2381.4,8.39831]
[1728022445312,12.27586,2382.5,2381.6,2.16163051]
[1728022445499,6.46419433,2382.4,2381.6,4.19874]
[1728022445692,0.7685,2382.1,2381.6,4.19874]
[1728022445920,5.07150697,2382.1,2381.5,4.19896]
[1728022446132,2.16163051,2382.0,2381.5,4.19896]
[1728022446447,2.16163051,2382.0,2381.5,4.19903]
[1728022446598,9.16461,2382.1,2381.5,4.19903]
[1728022446943,4.96655,2382.1,2381.5,4.19903]
[1728022447109,4.19825,2382.0,2381.4,4.19912]
[1728022447315,0.1049682,2381.9,2381.4,4.19912]
[1728022447483,0.10497024,2381.9,2381.4,4.19911]
[1728022447684,4.19824,2382.0,2381.4,4.19911]
[1728022448694,4.19834,2381.9,2381.4,4.19911]
[1728022448918,4.30331029,2381.9,2381.3,3.0]
[1728022449124,4.30331029,2381.9,2381.3,7.19934]
[1728022449305,4.30331029,2381.9,2381.3,11.39864]
[1728022449515,4.30331029,2381.9,2381.3,8.3986]
[1728022450728,4.30331029,2381.9,2381.4,4.1992]
[1728022451512,0.10497029,2381.9,2381.4,4.1992]
[1728022451727,4.96663,2382.1,2381.5,4.19895]
[1728022452091,9.16476,2382.1,2381.5,4.19895]
[1728022452238,9.16476,2382.1,2381.6,4.19873]
[1728022452239,0.7685,2382.1,2381.6,4.19873]
[1728022452551,0.10496047,2382.0,2381.2,6.63037691]
[1728022452736,4.30318047,2382.0,2381.4,4.19912]
[1728022453368,4.30318047,2382.0,2381.5,4.19903]
[1728022453572,0.10496047,2382.0,2381.5,4.19903]
[1728022454952,0.7685,2381.9,2381.4,4.19904]
[1728022455152,0.7685,2381.9,2381.5,4.19903]
[1728022456067,0.7685,2381.9,2381.4,4.19904]
[1728022456068,0.7685,2381.9,2381.4,4.78949492]
[1728022456368,0.7685,2381.9,2381.4,8.39817]
[1728022456569,0.7685,2381.9,2381.4,8.98862492]
[1728022456871,0.7685,2381.9,2381.4,8.39817]
[1728022457070,0.7685,2381.9,2381.4,8.98862492]
[1728022457380,2.16163051,2382.3,2381.6,4.19874]
[1728022457587,0.7685,2382.1,2381.6,8.39745]
[1728022459056,0.7685,2382.1,2381.6,4.19871]
[1728022459297,4.96648,2382.1,2381.6,4.19871]
[1728022459468,5.07144233,2382.1,2381.6,4.19871]
[1728022459793,4.96648,2382.1,2381.6,4.19871]
[1728022460354,4.19816,2382.0,2381.5,0.59102783]
[1728022460759,7.12811051,2382.1,2381.5,4.79003783]
[1728022460957,4.96648,2382.1,2381.5,4.78999376]
[1728022461190,4.96648,2382.1,2381.5,4.78999401]
[1728022461360,9.16458,2382.1,2381.5,4.78999401]
[1728022461755,4.19818,2382.0,2381.5,4.78999401]
[1728022462154,4.30314499,2382.0,2381.5,4.78999401]
[1728022462357,4.30314499,2382.0,2381.5,5.07815746]
[1728022463700,4.19818,2382.0,2381.5,5.07815746]
[1728022464170,4.30314498,2382.0,2381.5,5.07815746]
[1728022464377,4.19818,2382.0,2381.6,0.87914746]
[1728022467406,4.19818,2382.0,2381.7,0.87914746]
[1728022467898,0.7685,2381.9,2381.7,0.87914746]
[1728022468273,0.10496716,2381.8,2381.7,0.87914746]
[1728022468603,5.07188981,2381.9,2381.7,0.87914746]
[1728022471690,5.07188981,2381.9,2381.8,0.87914746]
[1728022473120,0.87346981,2381.9,2381.8,0.87914746]
[1728022473324,4.96654,2382.1,2381.8,0.87914746]
[1728022474123,4.96654,2382.1,2381.9,0.87914746]
[1728022474431,4.96654,2382.1,2381.8,0.87914746]
[1728022474601,4.96654,2382.1,2381.9,0.87914746]
[1728022475600,9.16467,2382.1,2381.9,0.87914746]
[1728022476301,9.16467,2382.1,2381.8,0.87914746]
[1728022477403,4.96654,2382.1,2381.8,0.87914746]
[1728022477731,4.96654,2382.1,2381.9,0.87914746]
[1728022478027,9.16461,2382.1,2381.9,0.87914746]
[1728022478232,4.96654,2382.1,2381.9,0.87914746]
[1728022478404,0.7685,2382.1,2382.0,0.87914746]
[1728022479629,0.8734564,2382.1,2381.9,0.87914746]
[1728022480121,4.19815,2382.0,2381.9,0.87914746]
[1728022480525,4.30311323,2382.0,2381.9,0.87914746]
[1728022480891,4.19815,2382.0,2381.9,0.87914746]
[1728022481222,4.30311313,2382.0,2381.9,0.87914746]
[1728022481430,4.19815,2382.0,2381.9,0.87914746]
[1728022482528,4.30311326,2382.0,2381.9,0.87914746]
[1728022483029,4.19815,2382.0,2381.9,0.87914746]
[1728022483204,4.3031132,2382.0,2381.9,0.87914746]
[1728022483404,4.19815,2382.0,2381.9,0.87914746]
[1728022484114,4.96654,2382.1,2381.9,0.87914746]
[1728022485126,4.96654,2382.1,2382.0,0.87914746]
[1728022485295,4.96654,2382.1,2381.9,0.87914746]
[1728022486013,5.07150255,2382.1,2381.9,0.87914746]
[1728022486336,4.19815,2382.0,2381.9,0.87914746]
[1728022487074,4.30311299,2382.0,2381.9,0.87914746]
[1728022487731,4.96658,2382.1,2381.9,0.87914746]
[1728022488096,5.07154282,2382.1,2381.9,0.87914746]
[1728022488335,4.96658,2382.1,2381.9,0.87914746]
[1728022490174,0.1049629,2382.0,2381.9,0.87914746]
[1728022490378,4.96658,2382.1,2381.9,0.87914746]
[1728022490547,5.07154276,2382.1,2381.9,0.87914746]
[1728022490872,4.96658,2382.1,2381.9,0.87914746]
[1728022491225,0.10496288,2382.0,2381.9,0.87914746]
[1728022491425,4.96658,2382.1,2381.9,0.87914746]
[1728022491626,0.27,2403.2,2381.9,0.87914746]
[1728022491627,0.7671,2382.6,2381.9,0.87914746]
[1728022491972,0.10494182,2382.5,2382.3,0.87914746]
[1728022492881,4.30230182,2382.5,2382.2,0.87914746]
[1728022493040,0.10494182,2382.5,2382.2,0.87914746]
[1728022493414,0.10494647,2382.5,2382.2,0.87914746]
[1728022495977,7.12584051,2382.6,2382.2,0.87914746]
[1728022496340,0.10494629,2382.5,2382.2,0.87914746]
[1728022499277,11.32302051,2382.6,2382.2,0.87914746]
[1728022499463,0.10494619,2382.5,2382.2,0.87914746]
[1728022500066,0.10494619,2382.5,2382.1,5.07701746]
[1728022500587,4.30221619,2382.5,2382.1,0.87914746]
[1728022500798,0.10494619,2382.5,2382.1,5.07705746]
[1728022501007,4.96463,2382.4,2382.1,0.87914746]
[1728022502256,4.1978,2382.2,2382.1,0.87914746]
[1728022502596,4.19763,2382.3,2382.0,0.87914746]
[1728022502791,4.19763,2382.3,2381.9,0.87914746]
[1728022502792,4.30275562,2382.2,2381.9,0.87914746]
[1728022503089,4.19763,2382.3,2381.9,0.87914746]
[1728022503887,4.19763,2382.3,2381.9,5.07745746]
[1728022504073,0.10494927,2382.3,2382.0,0.87914746]
[1728022504545,4.30258256,2382.3,2382.0,0.87914746]
[1728022505448,4.19763,2382.3,2382.0,0.87914746]
[1728022505961,4.30258241,2382.3,2382.0,0.87914746]
[1728022506764,0.10495241,2382.3,2382.0,0.87914746]
[1728022506966,0.7671,2382.4,2382.0,5.07722746]
[1728022507152,0.7671,2382.4,2382.2,4.19779]
[1728022507353,0.7846,2382.7,2382.1,7.23874797]
[1728022507558,0.7846,2382.7,2382.4,4.19737]
[1728022508154,0.10493241,2382.6,2382.2,5.07689746]
[1728022508371,4.30205241,2382.6,2382.2,5.07689746]
[1728022509177,4.98154,2382.7,2382.3,4.19762]
[1728022509379,0.7846,2382.7,2382.4,4.19736]
[1728022509577,0.7846,2382.7,2382.5,4.19721]
[1728022509901,4.98152,2382.7,2382.3,4.19761]
[1728022510718,0.7846,2382.7,2382.4,4.19743]
[1728022511479,4.98137,2382.8,2382.4,4.19743]
[1728022511674,4.19657,2382.9,2382.5,4.19718]
[1728022512125,3.0,2383.0,2382.5,4.19718]
[1728022512324,0.7846,2383.1,2382.7,4.19687]
[1728022512530,4.19599,2383.3,2382.8,4.19662]
[1728022512531,4.19605,2383.2,2382.8,4.19662]
[1728022513021,4.19605,2383.2,2382.8,4.19671]
[1728022513579,0.10491472,2383.1,2382.8,4.19671]
[1728022514221,0.10491472,2383.1,2382.7,8.39367]
[1728022514582,0.10491472,2383.1,2382.8,4.19668]
[1728022516610,4.19605,2383.2,2382.8,4.19668]
[1728022516998,4.19605,2383.2,2382.8,8.39335]
[1728022517415,0.10491452,2383.1,2382.8,8.39335]
[1728022517620,4.19605,2383.2,2382.8,8.39335]
[1728022518733,4.98049,2383.3,2382.9,4.19655]
[1728022518930,0.10491422,2383.2,2382.9,4.19655]
[1728022519626,4.98049,2383.3,2382.9,4.19655]
[1728022520510,0.10491419,2383.2,2382.9,4.19655]
[1728022520714,4.98049,2383.3,2382.9,4.19655]
[1728022522033,0.10491417,2383.2,2382.9,4.19655]
[1728022522332,4.98049,2383.3,2382.9,4.19655]
[1728022522506,0.7846,2383.3,2383.0,4.19629]
[1728022523114,4.98047,2383.3,2382.9,4.19655]
[1728022528845,0.7846,2383.3,2382.9,4.19655]
[1728022529048,0.7846,2383.3,2383.0,4.19635]
[1728022531313,4.19585,2383.4,2383.1,4.1962]
[1728022531540,5.00465,2383.5,2383.1,4.1962]
[1728022531709,4.19596,2383.3,2382.9,4.19653]
[1728022535353,4.19568,2383.4,2382.9,4.19653]
[1728022535557,8.3915,2383.4,2383.0,4.19634]
[1728022535906,4.19589,2383.3,2382.9,4.19653]
[1728022536227,4.19593,2383.3,2382.9,4.19653]
[1728022538845,4.19605,2383.2,2382.7,4.19681]
[1728022539014,0.7642,2383.2,2382.9,4.19647]
[1728022540123,4.96024,2383.2,2382.9,4.19647]
[1728022540464,4.19628,2383.1,2382.7,4.1969]
[1728022540628,4.30119328,2383.1,2382.7,4.1969]
[1728022540955,4.19628,2383.1,2382.7,4.1969]
[1728022543215,4.19628,2383.1,2382.8,4.19674]
[1728022543944,4.30119352,2383.1,2382.8,4.19674]
[1728022544110,0.7642,2383.2,2382.6,0.87914746]
[1728022544315,0.7642,2383.2,2382.9,4.19646]
[1728022545227,4.19586,2383.3,2382.9,4.19646]
[1728022546742,4.19586,2383.3,2382.9,8.39287]
[1728022547192,9.15571,2383.4,2383.0,4.19636]
[1728022551943,4.95993,2383.4,2383.0,4.19636]
[1728022554694,4.19592,2383.3,2382.9,5.07555746]
[1728022555002,4.19592,2383.3,2382.9,9.27197746]
[1728022556794,4.95993,2383.4,2383.0,4.19638]
[1728022556960,4.19586,2383.3,2383.0,4.19638]
[1728022557158,4.19586,2383.3,2383.0,5.07552746]
[1728022558798,0.8003,2383.2,2383.0,5.07552746]
[1728022559486,0.8003,2383.2,2383.0,0.87914746]
[1728022560716,0.10490671,2383.1,2383.0,0.87914746]
[1728022560998,4.99641,2383.2,2383.0,0.87914746]
[1728022561883,0.8003,2383.2,2383.0,0.87914746]
[1728022563007,5.10126081,2383.2,2383.0,0.87914746]
[1728022563212,4.99635,2383.2,2383.0,0.87914746]
[1728022563791,5.10126081,2383.2,2383.0,0.87914746]
[1728022565391,4.19621,2383.1,2383.0,0.87914746]
[1728022565668,5.00641,2383.1,2382.9,0.87914746]
[1728022566068,5.00641,2383.1,2382.8,0.87914746]
[1728022566264,4.19641,2383.0,2382.9,0.87914746]
[1728022566669,4.19641,2383.0,2382.8,0.87914746]
[1728022567106,4.30132887,2383.0,2382.9,0.87914746]
[1728022567322,5.00649,2383.1,2382.9,0.87914746]
[1728022567777,4.19639,2383.0,2382.9,0.87914746]
[1728022568512,5.00649,2383.1,2382.9,0.87914746]
[1728022569506,4.19639,2383.0,2382.9,0.87914746]
[1728022569811,5.00645,2383.1,2382.9,0.87914746]
[1728022570127,4.19639,2383.0,2382.9,0.87914746]
[1728022571221,5.00645,2383.1,2382.9,0.87914746]
[1728022573106,9.20275,2383.1,2382.9,0.87914746]
[1728022573531,5.00645,2383.1,2382.9,0.87914746]
[1728022574631,5.00621,2383.3,2382.9,5.07568746]
[1728022574812,5.11111724,2383.3,2383.0,0.87914746]
[1728022575131,5.11111724,2383.3,2382.9,5.07568746]
[1728022577218,5.00621,2383.3,2383.0,0.87914746]
[1728022577725,5.00621,2383.3,2383.0,4.19639]
[1728022579418,5.00621,2383.3,2383.0,5.07553746]
[1728022579633,0.10490725,2383.2,2383.0,0.87914746]
[1728022579802,0.10490725,2383.2,2382.9,9.27218746]
[1728022580128,0.10490725,2383.2,2383.0,0.87914746]
[1728022580335,0.8102,2383.3,2383.0,5.07552746]
[1728022580933,0.8102,2383.3,2383.1,4.1962]
[1728022581135,5.00578,2383.5,2383.1,5.07534746]
[1728022581345,4.19533,2383.7,2383.1,5.07534746]
[1728022581346,4.19522,2383.7,2383.2,5.07514746]
[1728022581494,5.00522,2383.8,2383.4,4.19566]
[1728022582136,5.00522,2383.8,2383.5,4.1955]
[1728022582137,0.8102,2383.8,2383.5,4.1955]
[1728022582307,0.8102,2384.0,2383.8,4.19495]
[1728022582493,0.8102,2384.2,2383.8,4.19495]
[1728022582698,0.8102,2384.2,2383.9,4.19473]
[1728022583045,4.19403,2384.4,2384.0,4.19462]
[1728022583046,0.8102,2384.4,2384.0,4.19462]
[1728022583216,5.0038,2384.6,2384.1,4.19431]
[1728022583413,6.654524,2384.6,2384.1,4.19431]
[1728022583816,10.848194,2384.6,2384.1,4.19431]
[1728022584449,6.654524,2384.6,2384.2,4.19425]
[1728022584652,11.50333,2384.8,2384.3,4.194]
[1728022584814,11.50324,2384.8,2384.4,4.19385]
[1728022585010,7.31,2384.8,2384.4,4.19385]
[1728022585409,0.8102,2384.9,2384.5,4.19363]
[1728022585626,7.31,2385.4,2384.5,4.19363]
[1728022585627,5.00264,2385.3,2384.7,4.19339]
[1728022585832,0.8102,2385.3,2384.7,2.16163051]
[1728022586028,4.19207,2385.5,2385.0,4.19279]
[1728022586460,4.19207,2385.5,2385.1,4.19268]
[1728022586663,5.00219,2385.6,2385.1,6.35422051]
[1728022586829,5.00211,2385.6,2385.1,6.35422051]
[1728022587165,5.00177,2385.8,2385.2,4.19242]
[1728022587388,4.19155,2385.8,2385.3,4.19223]
[1728022587960,9.19128,2386.4,2385.8,4.19131]
[1728022588135,4.19066,2386.3,2385.8,4.19131]
[1728022588452,4.19095,2386.1,2385.7,4.19163]
[1728022588768,5.109829,2386.3,2385.8,4.19145]
[1728022588918,0.919139,2386.3,2385.8,4.19145]
[1728022589120,4.19077,2386.2,2385.6,4.19168]
[1728022589343,4.19098,2386.1,2385.6,4.19168]
[1728022589616,4.6732327,2386.1,2385.6,4.19168]
[1728022590051,4.6732327,2386.1,2385.4,7.61272]
[1728022590052,4.19113,2386.0,2385.4,7.61272]
[1728022590264,4.19148,2385.8,2385.4,7.19202]
[1728022590472,4.19148,2385.8,2385.2,11.18822062]
[1728022590473,4.19148,2385.8,2385.2,4.19239]
[1728022590618,4.19148,2385.8,2385.2,8.3848]
[1728022590619,4.19165,2385.7,2385.2,8.3848]
[1728022590825,4.610628,2385.8,2385.2,8.3848]
[1728022591058,4.610628,2385.8,2385.3,4.19229]
[1728022592437,4.610628,2385.8,2385.2,4.19239]
[1728022592648,4.19148,2385.8,2385.2,4.19239]
[1728022593155,0.8102,2385.9,2385.0,6.99583062]
[1728022593156,8.38247,2386.0,2385.5,4.19196]
[1728022593677,0.10478874,2385.9,2385.3,4.19225]
[1728022593842,0.10478874,2385.9,2385.4,4.19208]
[1728022594046,4.29616874,2385.9,2385.4,4.19208]
[1728022594475,4.29616874,2385.9,2385.3,4.19225]
[1728022594476,4.19149,2385.8,2385.3,4.19225]
[1728022594643,4.29628602,2385.8,2385.3,4.19225]
[1728022595369,4.19149,2385.8,2385.3,4.19225]
[1728022595565,4.19165,2385.7,2385.3,4.19225]
[1728022596139,4.19182,2385.6,2385.1,4.19258]
[1728022596338,4.19182,2385.6,2385.2,4.19251]
[1728022597279,8.38306,2385.8,2385.3,4.19232]
[1728022597487,5.029816,2385.8,2385.3,4.19232]
[1728022597873,4.19151,2385.8,2385.3,4.19232]
[1728022598197,4.19166,2385.7,2385.3,4.19232]
[1728022598687,4.19166,2385.7,2385.2,8.38493]
[1728022598892,4.1914,2385.9,2385.4,4.19205]
[1728022599061,4.69156,2385.9,2385.4,4.19205]
[1728022599390,4.19165,2385.7,2385.2,4.19239]
[1728022600287,4.19165,2385.7,2385.2,8.38483]
[1728022600483,4.19165,2385.7,2385.2,4.19239]
[1728022601692,4.19165,2385.7,2385.2,8.38483]
[1728022602452,4.19165,2385.7,2385.2,4.19239]
[1728022602654,5.079979,2385.7,2385.2,4.19239]
[1728022603262,5.896979,2385.7,2385.2,4.19239]
[1728022604485,5.00865,2385.7,2385.2,4.19239]
[1728022604985,4.19182,2385.6,2385.2,4.19239]
[1728022607414,0.817,2386.2,2385.0,3.0]
[1728022607567,0.817,2386.2,2385.5,4.19186]
[1728022607568,4.19121,2386.0,2385.5,4.19186]
[1728022607761,4.19121,2386.0,2385.6,4.19179]
[1728022608924,4.19107,2386.1,2385.7,4.19155]
[1728022609227,0.817,2386.2,2385.8,4.19133]
[1728022609405,5.00779,2386.2,2385.8,4.19133]
[1728022610393,5.11256637,2386.2,2385.8,4.19133]
[1728022610703,5.00779,2386.2,2385.8,4.19133]
[1728022611316,0.817,2386.2,2385.8,4.19133]
[1728022611491,0.817,2386.2,2385.9,4.19124]
[1728022612589,4.19062,2386.3,2385.9,4.19124]
[1728022613513,4.29539643,2386.3,2385.9,4.19124]
[1728022613723,4.19078,2386.2,2385.8,4.19145]
[1728022614022,0.10477654,2386.2,2385.9,4.19127]
[1728022614325,4.19062,2386.3,2385.9,4.19127]
[1728022615125,4.29556632,2386.2,2385.8,4.19145]
[1728022615981,4.19062,2386.3,2385.8,4.19145]
[1728022615982,4.19062,2386.3,2385.9,4.19128]
[1728022616187,4.19062,2386.3,2385.8,4.19145]
[1728022616188,4.29555644,2386.2,2385.8,4.19145]
[1728022616387,4.29555644,2386.2,2385.8,4.19138]
[1728022617224,4.29555644,2386.2,2385.8,8.38276]
[1728022618022,4.19078,2386.2,2385.8,4.19138]
[1728022618225,4.29555712,2386.2,2385.8,4.19138]
[1728022618593,4.95651,2386.1,2385.6,4.19169]
[1728022618824,4.9564,2386.1,2385.7,4.19163]
[1728022619034,0.7654,2386.1,2385.8,4.19145]
[1728022619188,5.06113339,2386.1,2385.5,9.34857688]
[1728022619393,4.19121,2386.0,2385.6,7.55901013]
[1728022619614,0.10478831,2385.9,2385.6,4.19178]
[1728022619799,4.29599831,2386.0,2385.6,4.19178]
[1728022621425,0.7654,2385.8,2385.5,4.19198]
[1728022621804,0.7654,2385.8,2385.6,4.19181]
[1728022622134,4.95658,2386.0,2385.6,8.38352]
[1728022622340,4.95658,2386.0,2385.6,4.19171]
[1728022622542,9.14781,2386.0,2385.6,4.19171]
[1728022622832,4.95658,2386.0,2385.6,4.19171]
[1728022623036,0.7654,2386.0,2385.6,4.19171]
[1728022623206,0.7654,2386.0,2385.7,4.19162]
[1728022624334,0.7654,2386.2,2385.7,4.19162]
[1728022624535,4.95619,2386.2,2385.8,4.19136]
[1728022626525,0.7654,2386.2,2385.8,4.19136]
[1728022626845,12.28741,2386.4,2386.0,4.19104]
[1728022627043,4.19066,2386.3,2385.9,4.19126]
[1728022627700,4.19045,2386.4,2386.0,4.19111]
[1728022627897,4.19017,2386.6,2386.1,4.19086]
[1728022628101,4.19017,2386.6,2386.2,4.19074]
[1728022629329,4.29493015,2386.6,2386.1,4.19093]
[1728022629532,4.1903,2386.5,2386.1,9.26090746]
[1728022629839,4.29506041,2386.5,2386.1,9.26083746]
[1728022630204,4.29506041,2386.5,2386.1,5.06997746]
[1728022630405,4.29506041,2386.5,2386.1,9.26084746]
[1728022630647,0.10476041,2386.5,2386.1,5.06997746]
[1728022630855,4.19017,2386.6,2386.2,5.06979746]
[1728022631139,4.29493018,2386.6,2386.2,5.06979746]
[1728022631436,0.787,2386.7,2386.2,5.06979746]
[1728022631437,0.787,2386.7,2386.5,0.87914746]
[1728022631641,0.10475172,2386.8,2386.5,0.87914746]
[1728022631837,0.787,2386.6,2386.4,0.87914746]
[1728022632441,0.787,2386.6,2386.4,5.06948746]
[1728022633145,0.787,2386.6,2386.4,0.87914746]
[1728022633516,0.787,2386.6,2386.4,5.06952746]
[1728022634035,0.787,2386.6,2386.4,4.19038]
[1728022634997,0.787,2386.6,2386.3,5.06968746]
[1728022635504,0.787,2386.6,2386.4,4.19026]
[1728022635854,5.08158186,2386.8,2386.3,5.06956746]
[1728022635999,5.08158186,2386.8,2386.4,4.19039]
[1728022636211,5.08160186,2386.8,2386.3,5.06969746]
[1728022636414,4.29470198,2386.7,2386.3,0.87914746]
[1728022636616,4.29470198,2386.7,2386.2,0.87914746]